[Event "MČR družstev mladších žáků 2024"]
[Site "Harrachov, Czech Republic"]
[Date "2024.06.16"]
[Round "9.27"]
[White "Moravec Rene"]
[Black "Krivka Lukas"]
[Result "0-1"]
[TimeControl "25+10"]
[WhiteFideId "23745274"]
[BlackFideId "23752092"]
[WhiteElo "1295"]
[BlackElo "1266"]

1. e4 {[%clk 00:25:18]} {[%emt 00:00:01]} c6 {[%clk 00:25:19]} {[%emt
00:00:02]} 2. d4 {[%clk 00:25:26]} {[%emt 00:00:02]} d5 {[%clk 00:25:27]}
{[%emt 00:00:02]} 3. exd5 {[%clk 00:25:33]} {[%emt 00:00:03]} cxd5 {[%clk
00:25:35]} 4. Nf3 {[%clk 00:25:41]} {[%emt 00:00:02]} Nc6 {[%clk 00:25:41]}
{[%emt 00:00:05]} 5. Bb5 {[%clk 00:25:46]} {[%emt 00:00:05]} a6 {[%clk
00:25:11]} {[%emt 00:00:40]} 6. Ba4 {[%clk 00:25:53]} {[%emt 00:00:02]} Nf6
{[%clk 00:24:51]} {[%emt 00:00:31]} 7. O-O {[%clk 00:25:34]} {[%emt 00:00:28]}
Bg4 {[%clk 00:24:42]} {[%emt 00:00:19]} 8. Be3 {[%clk 00:25:29]} {[%emt
00:00:15]} e6 {[%clk 00:24:44]} {[%emt 00:00:09]} 9. Nbd2 {[%clk 00:25:35]}
{[%emt 00:00:03]} Be7 {[%clk 00:24:46]} {[%emt 00:00:08]} 10. c4 {[%clk
00:25:12]} {[%emt 00:00:32]} O-O {[%clk 00:24:41]} {[%emt 00:00:16]} 11. cxd5
{[%clk 00:25:14]} {[%emt 00:00:08]} Nxd5 {[%clk 00:24:18]} {[%emt 00:00:33]} 12.
Bxc6 {[%clk 00:25:04]} {[%emt 00:00:21]} bxc6 {[%clk 00:24:26]} {[%emt
00:00:02]} 13. Qc2 {[%clk 00:25:11]} {[%emt 00:00:02]} Bxf3 {[%clk 00:20:06]}
{[%emt 00:04:30]} 14. Nxf3 {[%clk 00:25:19]} {[%emt 00:00:02]} Rc8 {[%clk
00:17:42]} {[%emt 00:02:34]} 15. Ne5 {[%clk 00:25:14]} {[%emt 00:00:16]} Nb4
{[%clk 00:16:34]} {[%emt 00:01:18]} 16. Qc3 {[%clk 00:25:07]} {[%emt 00:00:15]}
Bd6 {[%clk 00:14:04]} {[%emt 00:02:41]} 17. Nc4 {[%clk 00:24:22]} {[%emt
00:00:55]} Nd5 {[%clk 00:13:00]} {[%emt 00:01:15]} 18. Qd3 {[%clk 00:23:51]}
{[%emt 00:00:34]} Bf4 {[%clk 00:11:10]} {[%emt 00:02:07]} 19. Bxf4 {[%clk
00:23:30]} {[%emt 00:00:31]} Nxf4 {[%clk 00:11:17]} {[%emt 00:00:03]} 20. Qe3
{[%clk 00:23:31]} {[%emt 00:00:09]} Nd5 {[%clk 00:11:20]} {[%emt 00:00:07]} 21.
Qe5 {[%clk 00:23:22]} {[%emt 00:00:17]} Qf6 {[%clk 00:10:53]} {[%emt 00:00:38]}
22. Qxf6 {[%clk 00:23:24]} {[%emt 00:00:09]} Nxf6 {[%clk 00:11:02]} {[%emt
00:00:01]} 23. Nd6 {[%clk 00:23:18]} {[%emt 00:00:14]} Rcd8 {[%clk 00:10:55]}
{[%emt 00:00:18]} 24. Nb7 {[%clk 00:23:07]} {[%emt 00:00:21]} Rxd4 {[%clk
00:11:02]} {[%emt 00:00:03]} 25. Rad1 {[%clk 00:23:14]} {[%emt 00:00:02]} Rd5
{[%clk 00:10:48]} {[%emt 00:00:26]} 26. Rxd5 {[%clk 00:23:20]} {[%emt
00:00:04]} cxd5 {[%clk 00:10:52]} {[%emt 00:00:05]} 27. Nc5 {[%clk 00:23:29]}
{[%emt 00:00:01]} Rb8 {[%clk 00:10:08]} {[%emt 00:00:47]} 28. Rc1 {[%clk
00:23:27]} {[%emt 00:00:19]} Rc8 {[%clk 00:09:32]} {[%emt 00:00:46]} 29. Nd3
{[%clk 00:23:24]} {[%emt 00:00:13]} Rxc1+ {[%clk 00:09:41]} {[%emt 00:00:01]}
30. Nxc1 {[%clk 00:23:33]} {[%emt 00:00:02]} Kf8 {[%clk 00:09:50]} {[%emt
00:00:01]} 31. Kf1 {[%clk 00:23:41]} {[%emt 00:00:01]} Ke7 {[%clk 00:09:58]}
{[%emt 00:00:03]} 32. Ke2 {[%clk 00:23:50]} {[%emt 00:00:01]} Kd6 {[%clk
00:10:05]} {[%emt 00:00:02]} 33. Kd3 {[%clk 00:23:59]} {[%emt 00:00:01]} Ne4
{[%clk 00:10:13]} {[%emt 00:00:03]} 34. f3 {[%clk 00:24:05]} {[%emt 00:00:04]}
Nc5+ {[%clk 00:10:19]} {[%emt 00:00:04]} 35. Ke3 {[%clk 00:24:11]} {[%emt
00:00:03]} e5 {[%clk 00:10:25]} {[%emt 00:00:04]} 36. b4 {[%clk 00:24:18]}
{[%emt 00:00:04]} Ne6 {[%clk 00:09:44]} {[%emt 00:00:50]} 37. a4 {[%clk
00:24:23]} {[%emt 00:00:06]} Nc7 {[%clk 00:09:48]} {[%emt 00:00:06]} 38. Nd3
{[%clk 00:24:28]} {[%emt 00:00:04]} f5 {[%clk 00:09:14]} {[%emt 00:00:44]} 39.
f4 {[%clk 00:24:23]} {[%emt 00:00:15]} d4+ {[%clk 00:09:21]} {[%emt 00:00:04]}
40. Kf3 {[%clk 00:24:25]} {[%emt 00:00:06]} e4+ {[%clk 00:09:29]} {[%emt
00:00:03]} 41. Ke2 {[%clk 00:24:34]} {[%emt 00:00:02]} exd3+ {[%clk 00:09:37]}
{[%emt 00:00:02]} 42. Kxd3 {[%clk 00:24:43]} {[%emt 00:00:01]} Kd5 {[%clk
00:09:45]} {[%emt 00:00:02]} 43. h3 {[%clk 00:24:50]} {[%emt 00:00:03]} Ne6
{[%clk 00:09:52]} {[%emt 00:00:03]} 44. g3 {[%clk 00:24:57]} {[%emt 00:00:03]}
g5 {[%clk 00:09:57]} {[%emt 00:00:05]} 45. b5 {[%clk 00:24:58]} {[%emt
00:00:09]} axb5 {[%clk 00:09:53]} {[%emt 00:00:14]} 46. axb5 {[%clk 00:25:07]}
{[%emt 00:00:01]} gxf4 {[%clk 00:09:48]} {[%emt 00:00:15]} 47. gxf4 {[%clk
00:25:14]} {[%emt 00:00:03]} Nxf4+ {[%clk 00:09:56]} {[%emt 00:00:02]} 48. Kd2
{[%clk 00:25:22]} {[%emt 00:00:01]} Kc5 {[%clk 00:09:59]} {[%emt 00:00:07]} 49.
h4 {[%clk 00:25:30]} {[%emt 00:00:03]} Kxb5 {[%clk 00:10:08]} {[%emt 00:00:01]}
50. Kc2 {[%clk 00:25:35]} {[%emt 00:00:04]} d3+ {[%clk 00:10:16]} {[%emt
00:00:03]} 51. Kd2 {[%clk 00:25:45]} Ng2 {[%clk 00:10:19]} {[%emt 00:00:05]} 52.
Kxd3 {[%clk 00:25:51]} {[%emt 00:00:05]} Nxh4 {[%clk 00:10:27]} {[%emt
00:00:01]} 53. Ke3 {[%clk 00:25:59]} {[%emt 00:00:02]} Ng6 {[%clk 00:10:34]}
{[%emt 00:00:03]} 54. Kd4 {[%clk 00:26:07]} {[%emt 00:00:02]} h5 {[%clk
00:10:40]} {[%emt 00:00:04]} 55. Ke3 {[%clk 00:26:16]} Kc5 {[%clk 00:10:48]}
{[%emt 00:00:03]} 56. Kf3 {[%clk 00:26:26]} {[%emt 00:00:01]} Kd4 {[%clk
00:10:57]} {[%emt 00:00:01]} 57. Kg3 {[%clk 00:26:35]} {[%emt 00:00:01]} h4+
{[%clk 00:11:06]} 58. Kh3 {[%clk 00:26:44]} {[%emt 00:00:01]} Ke3 {[%clk
00:11:10]} {[%emt 00:00:05]} 59. Kg2 {[%clk 00:26:52]} {[%emt 00:00:02]} Nf4+
{[%clk 00:11:16]} {[%emt 00:00:04]} 60. Kh2 {[%clk 00:27:00]} {[%emt 00:00:02]}
Kf2 {[%clk 00:11:13]} {[%emt 00:00:11]} 61. Kh1 {[%clk 00:27:09]} {[%emt
00:00:04]} Ne2 {[%clk 00:11:05]} {[%emt 00:00:16]} 62. Kh2 {[%clk 00:27:16]}
{[%emt 00:00:04]} f4 {[%clk 00:11:05]} {[%emt 00:00:10]} 63. Kh1 {[%clk
00:27:23]} {[%emt 00:00:04]} Nd4 {[%clk 00:11:08]} {[%emt 00:00:07]} 64. Kh2
{[%clk 00:27:31]} f3 {[%clk 00:11:15]} {[%emt 00:00:03]} 65. Kh1 {[%clk
00:27:40]} Ke1 {[%clk 00:10:49]} {[%emt 00:00:37]} 66. Kg1 {[%clk 00:27:42]}
{[%emt 00:00:08]} f2 {[%clk 00:10:57]} {[%emt 00:00:02]} 67. Kh2 {[%emt
00:00:05]} Nf3+ {[%clk 00:11:02]} 68. Kh3 {[%emt 00:00:17]} f1=Q+ {[%clk
00:11:04]} {[%emt 00:00:02]} 69. Kg4 {[%clk 00:28:00]} {[%emt 00:00:01]} Qg2+
{[%clk 00:11:06]} {[%emt 00:00:07]} 70. Kf5 {[%clk 00:28:07]} {[%emt 00:00:03]}
Ng1 {[%clk 00:11:03]} {[%emt 00:00:13]} 71. Kf4 {[%clk 00:28:08]} {[%emt
00:00:07]} Qf3+ {[%clk 00:11:09]} {[%emt 00:00:04]} 72. Ke5 {[%clk 00:28:17]}
{[%emt 00:00:03]} Qg4 {[%clk 00:11:18]} {[%emt 00:00:02]} 73. Kd5 {[%clk
00:28:26]} {[%emt 00:00:01]} Qf4 {[%clk 00:11:27]} {[%emt 00:00:01]} 74. Kc5
{[%clk 00:28:35]} Qe4 {[%clk 00:11:35]} {[%emt 00:00:01]} 75. Kb6 {[%clk
00:28:45]} Qd5 {[%clk 00:11:44]} {[%emt 00:00:02]} 76. Ka7 {[%clk 00:28:54]}
Qc6 {[%clk 00:11:53]} {[%emt 00:00:01]} 77. Kb8 {[%clk 00:29:02]} {[%emt
00:00:02]} Qd7 {[%clk 00:12:00]} {[%emt 00:00:01]} 78. Ka8 {[%clk 00:29:11]}
{[%emt 00:00:03]} Kd2 {[%clk 00:12:08]} {[%emt 00:00:02]} 79. Kb8 {[%clk
00:29:20]} {[%emt 00:00:01]} Kc3 {[%clk 00:12:17]} {[%emt 00:00:01]} 80. Ka8
{[%clk 00:29:29]} Kb4 {[%clk 00:12:25]} {[%emt 00:00:02]} 81. Kb8 {[%clk
00:29:38]} {[%emt 00:00:01]} Kb5 {[%clk 00:12:34]} {[%emt 00:00:01]} 82. Ka8
{[%clk 00:29:47]} Kb6 {[%clk 00:12:39]} {[%emt 00:00:04]} 83. Kb8 {[%clk
00:29:55]} {[%emt 00:00:03]} Qd8# {[%clk 00:12:37]} 0-1



[ePGN "0.1;DGT LiveChess/2.2.6"]

[Event "MČR družstev mladších žáků 2024"]
[Site "Harrachov, Czech Republic"]
[Date "2024.06.16"]
[Round "9.28"]
[White "Strihavka Petr"]
[Black "Sevcikova Terezie"]
[Result "1-0"]
[TimeControl "25+10"]
[WhiteFideId "23760702"]
[BlackFideId "23766425"]
[WhiteElo "1251"]
[BlackElo "1447"]

1. e4 {[%clk 00:25:18]} {[%emt 00:00:02]} d5 {[%clk 00:25:19]} {[%emt
00:00:01]} 2. exd5 {[%clk 00:25:26]} {[%emt 00:00:02]} Nf6 {[%clk 00:25:27]}
{[%emt 00:00:01]} 3. c4 {[%clk 00:25:25]} {[%emt 00:00:12]} c6 {[%clk
00:25:36]} {[%emt 00:00:01]} 4. Nc3 {[%clk 00:25:28]} {[%emt 00:00:07]} cxd5
{[%clk 00:25:44]} {[%emt 00:00:01]} 5. cxd5 {[%clk 00:25:37]} {[%emt 00:00:02]}
Nxd5 {[%clk 00:25:53]} {[%emt 00:00:01]} 6. Be2 {[%clk 00:25:11]} {[%emt
00:00:36]} Nc6 {[%clk 00:25:56]} {[%emt 00:00:07]} 7. Nf3 {[%clk 00:25:11]}
{[%emt 00:00:10]} Bf5 {[%clk 00:25:56]} {[%emt 00:00:07]} 8. O-O {[%clk
00:25:07]} {[%emt 00:00:17]} e6 {[%clk 00:26:04]} {[%emt 00:00:02]} 9. h3
{[%clk 00:24:25]} {[%emt 00:00:52]} Bc5 {[%clk 00:25:55]} {[%emt 00:00:19]} 10.
d4 {[%clk 00:23:33]} {[%emt 00:01:02]} Bb4 {[%clk 00:25:45]} {[%emt 00:00:10]}
11. Nxd5 {[%clk 00:22:47]} {[%emt 00:01:06]} Qxd5 {[%clk 00:25:46]} {[%emt
00:00:08]} 12. Be3 {[%clk 00:21:27]} {[%emt 00:01:29]} O-O {[%clk 00:25:33]}
{[%emt 00:00:24]} 13. Qc1 {[%clk 00:19:17]} {[%emt 00:02:21]} Rac8 {[%clk
00:24:59]} {[%emt 00:00:43]} 14. Bc4 {[%clk 00:18:51]} {[%emt 00:00:37]} Qd6
{[%clk 00:24:31]} {[%emt 00:00:36]} 15. Bf4 {[%clk 00:17:44]} {[%emt 00:01:17]}
Qe7 {[%clk 00:24:04]} {[%emt 00:00:34]} 16. b3 {[%clk 00:16:37]} {[%emt
00:01:23]} b5 {[%clk 00:22:44]} {[%emt 00:01:30]} 17. d5 {[%clk 00:13:38]}
{[%emt 00:03:08]} exd5 {[%clk 00:22:10]} {[%emt 00:00:44]} 18. Bxd5 {[%clk
00:13:28]} {[%emt 00:00:20]} Nd4 {[%clk 00:21:47]} {[%emt 00:00:32]} 19. Qd1
{[%clk 00:13:12]} {[%emt 00:00:26]} Ne2+ {[%clk 00:21:12]} {[%emt 00:00:39]} 20.
Kh1 {[%clk 00:12:47]} {[%emt 00:00:42]} Bc2 {[%clk 00:21:00]} {[%emt 00:00:21]}
21. Bg5 {[%clk 00:12:35]} {[%emt 00:00:23]} Bxd1 {[%clk 00:18:34]} {[%emt
00:02:35]} 22. Bxe7 {[%clk 00:12:43]} {[%emt 00:00:03]} Bxe7 {[%clk 00:18:41]}
{[%emt 00:00:03]} 23. Raxd1 {[%clk 00:12:21]} {[%emt 00:00:32]} Nc3 {[%clk
00:18:15]} {[%emt 00:00:32]} 24. Rd2 {[%clk 00:11:55]} {[%emt 00:00:40]} Rcd8
{[%clk 00:18:08]} {[%emt 00:00:15]} 25. Bc6 {[%clk 00:11:21]} {[%emt 00:00:46]}
b4 {[%clk 00:14:58]} {[%emt 00:03:20]} 26. Re1 {[%clk 00:10:46]} {[%emt
00:00:44]} Bf6 {[%clk 00:14:30]} {[%emt 00:00:35]} 27. Rc2 {[%clk 00:09:53]}
{[%emt 00:01:06]} h6 {[%clk 00:13:14]} {[%emt 00:01:27]} 28. Ne5 {[%clk
00:09:28]} {[%emt 00:00:35]} Bxe5 {[%clk 00:11:54]} {[%emt 00:01:30]} 29. Rxe5
{[%clk 00:09:33]} {[%emt 00:00:05]} Rd1+ {[%clk 00:11:20]} {[%emt 00:00:42]} 30.
Kh2 {[%clk 00:09:40]} {[%emt 00:00:05]} Ra1 {[%clk 00:10:56]} {[%emt 00:00:32]}
31. Ra5 {[%clk 00:09:47]} {[%emt 00:00:05]} Rc8 {[%clk 00:10:11]} {[%emt
00:00:51]} 32. Bd5 {[%clk 00:09:43]} {[%emt 00:00:18]} Rc7 {[%clk 00:10:04]}
{[%emt 00:00:14]} 33. Bf3 {[%clk 00:08:56]} {[%emt 00:01:00]} Re1 {[%clk
00:09:44]} {[%emt 00:00:25]} 34. Rd2 {[%clk 00:08:29]} {[%emt 00:00:41]} Re8
{[%clk 00:09:42]} {[%emt 00:00:11]} 35. Rd6 {[%clk 00:08:09]} {[%emt 00:00:32]}
Ree7 {[%clk 00:09:35]} {[%emt 00:00:18]} 36. Rd8+ {[%clk 00:08:01]} {[%emt
00:00:17]} Kh7 {[%clk 00:09:44]} 37. Rb8 {[%clk 00:08:08]} {[%emt 00:00:03]}
Nb1 {[%clk 00:05:24]} {[%emt 00:04:30]} 38. Rxb4 {[%clk 00:07:48]} {[%emt
00:00:30]} Nd2 {[%clk 00:05:25]} {[%emt 00:00:07]} 39. Bd5 {[%clk 00:06:24]}
{[%emt 00:01:36]} Re5 {[%clk 00:04:35]} {[%emt 00:00:59]} 40. Rd4 {[%clk
00:06:12]} {[%emt 00:00:23]} Nb1 {[%clk 00:04:30]} {[%emt 00:00:09]} 41. Be4+
{[%clk 00:06:18]} {[%emt 00:00:09]} Rxe4 {[%clk 00:03:57]} {[%emt 00:00:43]} 42.
Rxe4 {[%clk 00:06:24]} {[%emt 00:00:04]} Nc3 {[%clk 00:03:50]} {[%emt
00:00:17]} 43. Rc4 {[%clk 00:06:18]} {[%emt 00:00:17]} Rxc4 {[%clk 00:03:35]}
{[%emt 00:00:25]} 44. bxc4 {[%clk 00:06:26]} {[%emt 00:00:02]} Ne4 {[%clk
00:03:43]} {[%emt 00:00:02]} 45. c5 {[%clk 00:06:19]} {[%emt 00:00:17]} Kg6
{[%clk 00:03:46]} {[%emt 00:00:08]} 46. c6 {[%clk 00:05:40]} {[%emt 00:00:49]}
Nd6 {[%clk 00:03:45]} {[%emt 00:00:10]} 47. Rd5 {[%clk 00:05:36]} {[%emt
00:00:13]} Nc8 {[%clk 00:03:50]} {[%emt 00:00:05]} 48. c7 {[%clk 00:05:25]}
{[%emt 00:00:22]} Kf6 {[%clk 00:03:14]} {[%emt 00:00:45]} 49. Rd8 {[%clk
00:05:29]} {[%emt 00:00:06]} Nb6 {[%clk 00:03:20]} {[%emt 00:00:03]} 50. c8=Q
{[%clk 00:05:35]} {[%emt 00:00:05]} Nxc8 {[%clk 00:03:29]} {[%emt 00:00:02]} 51.
Rxc8 {[%clk 00:05:42]} {[%emt 00:00:03]} Ke6 {[%clk 00:03:35]} {[%emt
00:00:04]} 52. Rc7 {[%clk 00:05:49]} {[%emt 00:00:03]} a5 {[%clk 00:03:41]}
{[%emt 00:00:03]} 53. Ra7 {[%clk 00:05:56]} {[%emt 00:00:03]} g5 {[%clk
00:03:47]} {[%emt 00:00:05]} 54. Rxa5 {[%clk 00:06:04]} {[%emt 00:00:02]} Kf6
{[%clk 00:03:53]} {[%emt 00:00:03]} 55. Rc5 {[%clk 00:06:11]} {[%emt 00:00:04]}
Kg6 {[%clk 00:04:01]} {[%emt 00:00:02]} 56. a3 {[%clk 00:06:19]} {[%emt
00:00:02]} f5 {[%clk 00:04:09]} {[%emt 00:00:02]} 57. a4 {[%clk 00:06:28]}
{[%emt 00:00:01]} f4 {[%clk 00:04:18]} {[%emt 00:00:02]} 58. a5 {[%clk
00:06:36]} {[%emt 00:00:01]} Kf6 {[%clk 00:04:26]} {[%emt 00:00:02]} 59. a6
{[%clk 00:06:45]} {[%emt 00:00:01]} g4 {[%clk 00:04:33]} {[%emt 00:00:04]} 60.
a7 {[%clk 00:06:33]} {[%emt 00:00:10]} g3+ {[%clk 00:04:42]} 61. fxg3 {[%clk
00:06:40]} {[%emt 00:00:15]} f3 {[%clk 00:04:50]} {[%emt 00:00:03]} 62. gxf3
{[%clk 00:06:48]} {[%emt 00:00:02]} h5 {[%clk 00:04:59]} {[%emt 00:00:01]} 63.
a8=Q {[%clk 00:06:55]} {[%emt 00:00:03]} h4 {[%clk 00:05:03]} {[%emt 00:00:05]}
64. Qa6+ {[%clk 00:06:59]} {[%emt 00:00:05]} Ke7 {[%clk 00:05:12]} {[%emt
00:00:02]} 65. Rc7+ {[%clk 00:07:08]} Kd8 {[%clk 00:05:20]} {[%emt 00:00:01]}
66. Qc8# {[%clk 00:07:06]} {[%emt 00:00:02]} 1-0



[ePGN "0.1;DGT LiveChess/2.2.6"]

[Event "MČR družstev mladších žáků 2024"]
[Site "Harrachov, Czech Republic"]
[Date "2024.06.16"]
[Round "9.29"]
[White "Kobersky Matyas"]
[Black "Bejvl Antonin"]
[Result "1-0"]
[TimeControl "25+10"]
[WhiteFideId "23747501"]
[BlackFideId "23770953"]
[WhiteElo "1206"]
[BlackElo "1172"]

1. d4 {[%clk 00:25:15]} {[%emt 00:00:04]} e5 {[%clk 00:25:18]} {[%emt
00:00:02]} 2. dxe5 {[%clk 00:25:16]} {[%emt 00:00:08]} d6 {[%clk 00:25:26]}
{[%emt 00:00:03]} 3. exd6 {[%clk 00:25:19]} {[%emt 00:00:06]} Bxd6 {[%clk
00:25:33]} {[%emt 00:00:03]} 4. Nc3 {[%clk 00:25:20]} {[%emt 00:00:10]} Nc6
{[%clk 00:25:35]} {[%emt 00:00:07]} 5. Nf3 {[%clk 00:25:27]} {[%emt 00:00:04]}
Bg4 {[%clk 00:25:32]} {[%emt 00:00:12]} 6. e4 {[%clk 00:25:03]} {[%emt
00:00:34]} Qe7 {[%clk 00:25:23]} {[%emt 00:00:18]} 7. h3 {[%clk 00:24:59]}
{[%emt 00:00:16]} Bh5 {[%clk 00:25:29]} {[%emt 00:00:04]} 8. Bd3 {[%clk
00:24:42]} {[%emt 00:00:24]} O-O-O {[%clk 00:25:29]} {[%emt 00:00:13]} 9. O-O
{[%clk 00:24:28]} {[%emt 00:00:23]} Nf6 {[%clk 00:25:11]} {[%emt 00:00:29]} 10.
Bg5 {[%clk 00:24:01]} {[%emt 00:00:35]} Ne5 {[%clk 00:24:16]} {[%emt 00:01:08]}
11. Be2 {[%clk 00:20:49]} {[%emt 00:03:21]} h6 {[%clk 00:18:09]} {[%emt
00:06:17]} 12. Nxe5 {[%clk 00:19:11]} {[%emt 00:01:48]} Bxe5 {[%clk 00:17:57]}
{[%emt 00:00:22]} 13. Bxf6 {[%clk 00:19:12]} {[%emt 00:00:09]} Qxf6 {[%clk
00:17:26]} {[%emt 00:00:42]} 14. Bg4+ {[%clk 00:16:36]} {[%emt 00:02:45]} Bxg4
{[%clk 00:15:30]} {[%emt 00:02:05]} 15. Qxg4+ {[%clk 00:16:40]} {[%emt
00:00:06]} Kb8 {[%clk 00:15:17]} {[%emt 00:00:24]} 16. Nd5 {[%clk 00:14:48]}
{[%emt 00:02:02]} Qd6 {[%clk 00:14:00]} {[%emt 00:01:25]} 17. Rab1 {[%clk
00:13:23]} {[%emt 00:01:37]} h5 {[%clk 00:13:50]} {[%emt 00:00:20]} 18. Qf3
{[%clk 00:12:54]} {[%emt 00:00:39]} Qe6 {[%clk 00:13:04]} {[%emt 00:00:56]} 19.
a3 {[%clk 00:11:52]} {[%emt 00:01:13]} Rh6 {[%clk 00:12:30]} {[%emt 00:00:42]}
20. Rfd1 {[%clk 00:10:47]} {[%emt 00:01:16]} Rf8 {[%clk 00:09:31]} {[%emt
00:03:08]} 21. Nf4 {[%clk 00:09:43]} {[%emt 00:01:15]} Bxf4 {[%clk 00:09:04]}
{[%emt 00:00:38]} 22. Qxf4 {[%clk 00:09:46]} {[%emt 00:00:06]} a6 {[%clk
00:07:27]} {[%emt 00:01:47]} 23. Rd5 {[%clk 00:09:12]} {[%emt 00:00:44]} Rf6
{[%clk 00:06:44]} {[%emt 00:00:53]} 24. Qe3 {[%clk 00:09:13]} {[%emt 00:00:09]}
g6 {[%clk 00:05:55]} {[%emt 00:00:58]} 25. Rbd1 {[%clk 00:09:15]} {[%emt
00:00:07]} Qe7 {[%clk 00:04:50]} {[%emt 00:01:17]} 26. Qg5 {[%clk 00:09:01]}
{[%emt 00:00:21]} Re8 {[%clk 00:03:09]} {[%emt 00:01:54]} 27. e5 {[%clk
00:09:01]} {[%emt 00:00:10]} Rb6 {[%clk 00:02:45]} {[%emt 00:00:33]} 28. Rd8+
{[%clk 00:08:53]} {[%emt 00:00:18]} Ka7 {[%clk 00:02:11]} {[%emt 00:00:45]} 29.
Qxe7 {[%clk 00:08:16]} {[%emt 00:00:46]} Rxe7 {[%clk 00:02:19]} {[%emt
00:00:03]} 30. R8d7 {[%clk 00:08:09]} {[%emt 00:00:17]} Rxe5 {[%clk 00:02:10]}
{[%emt 00:00:19]} 31. Rxf7 {[%clk 00:08:04]} {[%emt 00:00:14]} Rxb2 {[%clk
00:01:59]} {[%emt 00:00:22]} 32. Rxc7 {[%clk 00:08:11]} {[%emt 00:00:03]} Ra2
{[%clk 00:01:50]} {[%emt 00:00:19]} 33. Rd6 {[%clk 00:07:47]} {[%emt 00:00:33]}
Rxa3 {[%clk 00:01:44]} {[%emt 00:00:17]} 34. Rxg6 {[%clk 00:07:55]} {[%emt
00:00:02]} a5 {[%clk 00:01:18]} {[%emt 00:00:36]} 35. f4 {[%clk 00:07:38]}
{[%emt 00:00:28]} Rb5 {[%clk 00:00:36]} {[%emt 00:00:50]} 36. Rg5 {[%clk
00:07:42]} {[%emt 00:00:07]} Rxg5 {[%clk 00:00:39]} {[%emt 00:00:07]} 37. fxg5
{[%clk 00:07:49]} {[%emt 00:00:03]} Rg3 {[%clk 00:00:47]} {[%emt 00:00:03]} 38.
Rc5 {[%clk 00:07:48]} {[%emt 00:00:10]} b6 {[%clk 00:00:56]} {[%emt 00:00:01]}
39. Rc7+ {[%clk 00:07:48]} {[%emt 00:00:10]} Ka6 {[%clk 00:01:02]} {[%emt
00:00:04]} 40. Rg7 {[%clk 00:07:52]} {[%emt 00:00:05]} Kb5 {[%clk 00:01:09]}
{[%emt 00:00:04]} 41. Kf2 {[%clk 00:07:53]} {[%emt 00:00:09]} Rc3 {[%clk
00:01:12]} {[%emt 00:00:06]} 42. g6 {[%clk 00:07:46]} {[%emt 00:00:17]} Rxc2+
{[%clk 00:01:20]} {[%emt 00:00:02]} 43. Kf3 {[%clk 00:07:55]} {[%emt 00:00:02]}
a4 {[%clk 00:01:29]} {[%emt 00:00:01]} 44. Ra7 {[%clk 00:07:58]} {[%emt
00:00:06]} Kb4 {[%clk 00:01:31]} {[%emt 00:00:09]} 45. g7 {[%clk 00:08:03]}
{[%emt 00:00:05]} Rc8 {[%clk 00:01:38]} {[%emt 00:00:03]} 46. Rf7 {[%clk
00:08:09]} {[%emt 00:00:04]} Rg8 {[%clk 00:01:42]} {[%emt 00:00:05]} 47. Kf4
{[%clk 00:08:16]} {[%emt 00:00:04]} a3 {[%clk 00:01:48]} {[%emt 00:00:03]} 48.
Kf5 {[%clk 00:08:23]} {[%emt 00:00:04]} a2 {[%clk 00:01:45]} {[%emt 00:00:13]}
49. Ra7 {[%clk 00:08:12]} {[%emt 00:00:19]} Rxg7 {[%clk 00:01:41]} {[%emt
00:00:16]} 50. Rxa2 {[%clk 00:08:00]} {[%emt 00:00:21]} b5 {[%clk 00:01:31]}
{[%emt 00:00:21]} 51. g4 {[%clk 00:08:09]} {[%emt 00:00:01]} hxg4 {[%clk
00:01:33]} {[%emt 00:00:08]} 52. hxg4 {[%clk 00:08:17]} {[%emt 00:00:02]} Kb3
{[%clk 00:01:38]} {[%emt 00:00:05]} 53. Ra6 {[%clk 00:08:24]} {[%emt 00:00:03]}
b4 {[%clk 00:01:45]} {[%emt 00:00:04]} 54. Rb6 {[%clk 00:08:33]} {[%emt
00:00:01]} Kc3 {[%clk 00:01:35]} {[%emt 00:00:20]} 55. g5 {[%clk 00:08:27]}
{[%emt 00:00:16]} b3 {[%clk 00:01:40]} {[%emt 00:00:04]} 56. g6 {[%clk
00:08:33]} {[%emt 00:00:04]} Kc2 {[%clk 00:01:38]} {[%emt 00:00:12]} 57. Rc6+
{[%clk 00:08:41]} {[%emt 00:00:02]} Kd3 {[%clk 00:01:37]} {[%emt 00:00:10]} 58.
Kf6 {[%clk 00:08:10]} {[%emt 00:00:42]} b2 {[%clk 00:00:57]} {[%emt 00:00:51]}
59. Rb6 {[%clk 00:08:15]} {[%emt 00:00:05]} Rxg6+ {[%clk 00:00:41]} {[%emt
00:00:25]} 60. Kxg6 {[%clk 00:08:16]} {[%emt 00:00:09]} Kc2 {[%clk 00:00:47]}
{[%emt 00:00:04]} 1-0



[ePGN "0.1;DGT LiveChess/2.2.6"]